Workbook

Sheet Complaint Dashbord
A2: Key Performance Indicators
B3: 2018
B4: 1st Qtr | D4: 2nd Qtr | F4: 3rd Qtr | H4: 4th Qtr | J4: Year
A5: Total House Calls | B5: 1226 | D5: 1352 | F5: 1466 | H5: 1537 | J5: AVG
A8: Complaints | B8: # | C8: % | D8: # | E8: % | F8: # | G8: % | H8: # | I8: % | J8: %
A9: Arranged appointment not kept | B9: 12 | C9: =B9/B$5 -> 0.009787928222 | D9: 12 | E9: =D9/D$5 -> 0.008875739645 | F9: 12 | G9: =F9/F$5 -> 0.008185538881 | H9: 12 | I9: =H9/H$5 -> 0.007807417046 | J9: =(C9+E9+G9+I9)/4 -> 0.008664155949
A10: Dissatisfaction with Price of service | B10: 26 | C10: =B10/B$5 -> 0.02120717781 | D10: 19 | E10: =D10/D$5 -> 0.01405325444 | F10: 20 | G10: 0.0136425648 | H10: 24 | I10: =H10/H$5 -> 0.01561483409 | J10: =(C10+E10+G10+I10)/4 -> 0.01612945779
A11: Service not delivered to expected standard | B11: 15 | C11: 0.01223491028 | D11: 15 | E11: =D11/D$5 -> 0.01109467456 | F11: 16 | G11: 0.01091405184 | H11: 21 | I11: =H11/H$5 -> 0.01366297983 | J11: 0.01197665413
A12: Repair delayed or not completed | B12: 33 | C12: 0.02691680261 | D12: 17 | E12: =D12/D$5 -> 0.0125739645 | F12: 12 | G12: 0.008185538881 | H12: 18 | I12: =H12/H$5 -> 0.01171112557 | J12: 0.01484685789
A13: General delay | B13: 13 | C13: 0.01060358891 | D13: 8 | E13: =D13/D$5 -> 0.005917159763 | F13: 13 | G13: 0.008867667121 | H13: 16 | I13: =H13/H$5 -> 0.01040988939 | J13: 0.008949576297
A14: Rudeness or attitude | B14: 15 | C14: 0.01223491028 | D14: 19 | E14: =D14/D$5 -> 0.01405325444 | F14: 11 | G14: 0.007503410641 | H14: 12 | I14: =H14/H$5 -> 0.007807417046 | J14: 0.0103997481
A15: Total | B15: =SUM(B9:B14) -> 114 | C15: 0.09298531811 | D15: =SUM(D9:D14) -> 90 | E15: =D15/D$5 -> 0.06656804734 | F15: =SUM(F9:F14) -> 84 | G15: 0.05729877217 | H15: =SUM(H9:H14) -> 103 | I15: =H15/H$5 -> 0.06701366298 | J15: 0.07096645015

Sheet My First Macro
E4: Build your First Ecel VBA Macro
D6: 1 | E6: Add the Developer tab to your Excel Ribbon
D7: 2 | E7: Set up your Desktop for editing and parts of VBE
D8: 3 | E8: The magic of the immediate window
D9: 4 | E9: Build a Basic Excel Macro
D10: 5 | E10: Record a Macro
